Workbook

Sheet 四川联盟药品中选产品供应清单
A1: 附件3-1
A2: 四川联盟环磷腺苷葡胺等化学药品带量联动采购我省参加品种中选产品供应清单
A3: 医保编码 | B3: 通用名 | C3: 品种名称 | D3: 品种序号 | E3: 注册规格 | F3: 注册剂型 | G3: 实际规格 | H3: 实际剂型 | I3: 包装材质 | J3: 最小 包装 数量 | K3: 最小 包装 单位 | L3: 最小 制剂 单位 | M3: 批准文号 | N3: 药品企业 | O3: 申报企业 | P3: 中选价 | Q3: 备注
A4: XB01AXA223B 001030101651 | B4: 注射用奥扎 格雷钠 | C4: 奥扎格雷注射剂 | D4: 5B | E4: 80mg(以 C 13H 11N2O 2NaO2 计) | F4: 注射剂 | G4: 80mg(以 C 13H 11N2O 2NaO2 计) | H4: 注射剂 | I4: 管制抗生素玻璃瓶 | J4: 1 | K4: 盒 | L4: 瓶 | M4: 国药准字 H20083157 | N4: 苏州二叶制 药有限公司 | O4: 苏州二叶制药 有限公司 | P4: 0.92 | Q4: 代表品
A5: XC05CAQ094B 002010203087 | B5: 曲克芦丁注射液 | C5: 曲克芦丁注射剂 | D5: 1B | E5: 2ml:0.1g | F5: 注射剂 | G5: 2ml:0.1g | H5: 注射液 | I5: 低硼硅玻璃安瓿 | J5: 1 | K5: 支 | L5: 支 | M5: 国药准字 H41024825 | N5: 百正药业股 份有限公司 | O5: 百正药业股份 有限公司 | P5: 0.65 | Q5: 代表品
A6: XR06AXG080A 001010200568 | B6: 枸地氯雷他定片 | C6: 枸地氯雷他 定口服常释 剂型 | D6: 59B | E6: 8.8mg(按 C25H25ClN 2O7Na2 计) | F6: 片剂 | G6: 8.8mg(按 C25H25ClN 2O7Na2 计) | H6: 片剂 | I6: 铝塑包装 | J6: 6 | K6: 盒 | L6: 片 | M6: 国药准字 H20090138 | N6: 扬子江药业 集团广州海 瑞药业有限 公司 | O6: 扬子江药业集 团广州海瑞药 业有限公司 | P6: 50.21 | Q6: 代表品
A7: XC05CAQ094B 002020103205 | B7: 曲克芦丁注射液 | C7: 曲克芦丁注射剂 | D7: 1B | E7: 2ml:100mg | F7: 注射剂 | G7: 2ml:100mg | H7: 注射剂 | I7: 低硼硅玻璃安瓿 | J7: 1 | K7: 支 | L7: 支 | M7: 国药准字 H20046211 | N7: 国药集团容 生制药有限 公司 | O7: 国药集团容生 制药有限公司 | P7: 0.67 | Q7: 代表品
A8: XV02DXH042B 002030104180 | B8: 环磷腺苷葡 胺注射液 | C8: 环磷腺苷葡 胺注射剂 | D8: 4B | E8: 2ml:30mg | F8: 注射剂 | G8: 2ml:30mg | H8: 注射剂 | I8: 低硼硅玻璃安瓿 | J8: 1 | K8: 支 | L8: 支 | M8: 国药准字 H20053304 | N8: 中孚药业股 份有限公司 | O8: 中孚药业股份 有限公司 | P8: 3.9 | Q8: 代表品
A9: XV02DXH042B 002020103358 | B9: 环磷腺苷葡 胺注射液 | C9: 环磷腺苷葡 胺注射剂 | D9: 4B | G9: 5ml:60mg | H9: 注射液 | I9: 安瓿包装 | J9: 1 | K9: 支 | L9: 支 | M9: 国药准字 H20059648 | N9: 吉林敖东药 业集团延吉 股份有限公 司 | O9: 吉林敖东药业 集团延吉股份 有限公司 | P9: 8.52 | Q9: 代表品
A10: XC02CXY165B 002020205549 | B10: 银杏达莫注射液 | C10: 银杏达莫注射剂 | D10: 9B | E10: 5ml | F10: 注射剂 | G10: 5ml | H10: 注射液 | I10: 安瓿瓶 | J10: 1 | K10: 支 | L10: 支 | M10: 国药准字 H52020032 | N10: 贵州益佰制 药股份有限 公司 | O10: 贵州益佰制药 股份有限公司 | P10: 6.25 | Q10: 代表品
A11: XC05CAQ094B 002020103060 | B11: 曲克芦丁注射液 | C11: 曲克芦丁注射剂 | D11: 1B | G11: 2ml:60mg | H11: 注射剂 | I11: 低硼硅玻璃安瓿 | J11: 1 | K11: 支 | L11: 支 | M11: 国药准字 H20058815 | N11: 河南省神农 药业有限公 司 | O11: 河南省神农药 业有限公司 | P11: 0.55 | Q11: 代表品
A12: XV02DXH042B 002010102699 | B12: 环磷腺苷葡 胺注射液 | C12: 环磷腺苷葡 胺注射剂 | D12: 4B | G12: 2ml:30mg | H12: 注射剂 | I12: 安瓿 | J12: 1 | K12: 支 | L12: 支 | M12: 国药准字 H20045060 | N12: 华北制药股 份有限公司 | O12: 华北制药股份 有限公司 | P12: 5.37 | Q12: 代表品
A13: XB01AXA223B 014060200239 | B13: 注射用奥扎 格雷钠 | C13: 奥扎格雷注射剂 | D13: 5B | G13: 80mg | H13: 冻干粉针 | I13: 西林瓶 | J13: 1 | K13: 支 | L13: 支 | M13: 国药准字 H20063853 | N13: 悦康药业集 团股份有限 公司 | O13: 悦康药业集团 股份有限公司 | P13: 1.62 | Q13: 代表品
A14: XC05CAQ094B 001010205791 | B14: 注射用曲克芦丁 | C14: 曲克芦丁注射剂 | D14: 1B | E14: 0.4g | F14: 注射剂 | G14: 0.4g | H14: 冻干粉针剂 | I14: 玻璃管制注射剂 瓶 | J14: 1 | K14: 瓶 | L14: 瓶 | M14: 国药准字 H20051742 | N14: 海南倍特药 业有限公司 | O14: 海南倍特药业 有限公司 | P14: 1.9 | Q14: 代表品
A15: XB01AXA223B 002010205791 | B15: 奥扎格雷钠 注射液 | C15: 奥扎格雷注射剂 | D15: 5B | E15: 2ml:40mg | F15: 注射剂 | G15: 2ml:40mg | H15: 注射液 | I15: 安瓿 | J15: 1 | K15: 支 | L15: 支 | M15: 国药准字 H20093200 | N15: 海南倍特药 业有限公司 | O15: 海南倍特药业 有限公司 | P15: 0.65 | Q15: 代表品
A16: XC05CAQ094B 001010203134 | B16: 注射用曲克芦丁 | C16: 曲克芦丁注射剂 | D16: 1B | E16: 0.4g | F16: 注射剂 | G16: 0.4g | H16: 注射剂 | I16: 低硼硅玻璃管制 注射剂瓶、氯化 丁基橡胶塞 | J16: 1 | K16: 支 | L16: 支 | M16: 国药准字 H20040105 | N16: 开封康诺药 业有限公司 | O16: 开封康诺药业 有限公司 | P16: 2.35 | Q16: 代表品
A17: XR06AXG080E 001010310237 | B17: 枸地氯雷他 定胶囊 | C17: 枸地氯雷他 定口服常释 剂型 | D17: 59B | E17: 8.8mg | F17: 胶囊剂 | G17: 8.8mg | H17: 硬胶囊 | I17: 铝塑 | J17: 6 | K17: 盒 | L17: 粒 | M17: 国药准字 H20173031 | N17: 合肥恩瑞特 药业有限公 司 | O17: 合肥恩瑞特药 业有限公司 | P17: 43.8 | Q17: 代表品
A18: XC02CXY165B 002040102918 | B18: 银杏达莫注射液 | C18: 银杏达莫注射剂 | D18: 9B | E18: 10ml | F18: 注射剂 | G18: 10ml | H18: 注射液 | I18: 安瓿 | J18: 1 | K18: 支 | L18: 支 | M18: 国药准字 H 14023516 | N18: 山西普德药 业有限公司 | O18: 山西普德药业 有限公司 | P18: 13.08 | Q18: 代表品
A19: XA05BAF258B 002010202946 | B19: 复方二氯醋 酸二异丙胺 注射液 | C19: 复方二氯醋 酸二异丙胺 (二氯醋酸二 异丙胺葡萄 糖酸钠）注射 剂 | D19: 2B | G19: 2ml:40mg | H19: 注射液 | I19: 安瓿瓶 | J19: 1 | K19: 支 | L19: 支 | M19: 国药准字 H20055889 | N19: 山西振东泰 盛制药有限 公司 | O19: 山西振东泰盛 制药有限公司 | P19: 1.78 | Q19: 代表品
A20: XA05BAF258B 002020201157 | B20: 复方二氯醋 酸二异丙胺 注射液 | C20: 复方二氯醋 酸二异丙胺 (二氯醋酸二 异丙胺葡萄 糖酸钠）注射 剂 | D20: 2B | E20: 2ml:40mg | F20: 注射剂 | G20: 2ml:40mg | H20: 注射液 | I20: 安瓿 | J20: 1 | K20: 支 | L20: 支 | M20: 国药准字 H21023820 | N20: 丹东医创药 业有限责任 公司 | O20: 丹东医创药业 有限责任公司 | P20: 1.4 | Q20: 代表品
A21: XB01AXA223B 014020201157 | B21: 注射用奥扎 格雷钠 | C21: 奥扎格雷注射剂 | D21: 5B | E21: 40mg | F21: 注射剂(冻干) | G21: 40mg | H21: 冻干粉针 | I21: 西林瓶 | J21: 1 | K21: 支 | L21: 支 | M21: 国药准字 H20033991 | N21: 丹东医创药 业有限责任 公司 | O21: 丹东医创药业 有限责任公司 | P21: 0.9 | Q21: 代表品
A22: XN06BXJ001B 001010203662 | B22: 注射用肌氨肽苷 | C22: 肌氨肽苷注射剂 | D22: 8B | G22: 8.75mg 多 肽与 1.25mg 次 黄嘌呤 | H22: 注射剂 | I22: 低硼硅玻璃管制 注射剂瓶 | J22: 1 | K22: 瓶 | L22: 瓶 | M22: 国药准字 H20051053 | N22: 哈尔滨三联 药业股份有 限公司 | O22: 哈尔滨三联药 业股份有限公 司 | P22: 11.4 | Q22: 代表品
A23: XB01AXA223B 001010203662 | B23: 注射用奥扎 格雷钠 | C23: 奥扎格雷注射剂 | D23: 5B | E23: 80mg(按奥 扎格雷钠 计) | F23: 注射剂 | G23: 80mg | H23: 注射剂 | I23: 低硼硅玻璃管制 注射剂瓶 | J23: 1 | K23: 瓶 | L23: 瓶 | M23: 国药准字 H20056605 | N23: 哈尔滨三联 药业股份有 限公司 | O23: 哈尔滨三联药 业股份有限公 司 | P23: 1.53 | Q23: 代表品
A24: XV02DXH042B 001020204982 | B24: 注射用环磷 腺苷葡胺 | C24: 环磷腺苷葡 胺注射剂 | D24: 4B | E24: 60mg | F24: 注射剂 | G24: 60mg | H24: 注射剂 | I24: 低硼硅玻璃管制 注射剂瓶 | J24: 1 | K24: 瓶 | L24: 瓶 | M24: 国药准字 H20041846 | N24: 湖南五洲通 药业股份有 限公司 | O24: 湖南五洲通药 业股份有限公 司 | P24: 7.49 | Q24: 代表品
A25: XV02DXH042B 002010104951 | B25: 环磷腺苷葡 胺注射液 | C25: 环磷腺苷葡 胺注射剂 | D25: 4B | E25: 2ml:30mg | F25: 注射剂 | G25: 2ml:30mg | H25: 注射液 | I25: 低硼硅玻璃安瓿 | J25: 1 | K25: 支 | L25: 支 | M25: 国药准字 H20003698 | N25: 康普药业股 份有限公司 | O25: 康普药业股份 有限公司 | P25: 4.97 | Q25: 代表品
A26: XC05CAQ094B 002010104187 | B26: 曲克芦丁注射液 | C26: 曲克芦丁注射剂 | D26: 1B | E26: 10ml:0.3g | F26: 注射剂 | G26: 10ml:0.3g | H26: 注射液 | I26: 安瓿 | J26: 1 | K26: 支 | L26: 支 | M26: 国药准字 H37023210 | N26: 山东新华制 药股份有限 公司 | O26: 山东新华制药 股份有限公司 | P26: 1.41 | Q26: 代表品
A27: XN06BXJ001B 002010203422 | B27: 肌氨肽苷注射液 | C27: 肌氨肽苷注射剂 | D27: 8B | E27: 2ml:3.5mg( 多 肽):0.5mg( 次黄嘌呤) | F27: 注射剂 | G27: 2ml:3.5mg( 多 肽):0.5mg( 次黄嘌呤) | H27: 注射液 | I27: 低硼硅玻璃安瓿 | J27: 1 | K27: 支 | L27: 支 | M27: 国药准字 H22025697 | N27: 通化惠康生 物制药有限 公司 | O27: 通化惠康生物 制药有限公司 | P27: 8.2 | Q27: 代表品
A28: XC05CAQ142B 002010101152 | B28: 曲克芦丁氯 化钠注射液 | C28: 曲克芦丁注射剂 | D28: 1B | G28: 100ml:曲克 芦丁 0.4g 与 氯化钠 0.9g | H28: 注射剂 | I28: 玻璃输液瓶 | J28: 1 | K28: 瓶 | L28: 瓶 | M28: 国药准字 H20080671 | N28: 辽宁海神联 盛制药有限 公司 | O28: 辽宁海神联盛 制药有限公司 | P28: 4.35 | Q28: 代表品
A29: XB01AXA235B 002010201207 | B29: 奥扎格雷钠 葡萄糖注射 液 | C29: 奥扎格雷注射剂 | D29: 5B | E29: 100ml:奥扎 格雷钠 80mg 与葡萄糖 5g | F29: 注射剂 | G29: 100ml:奥扎 格雷钠 80mg 与葡 萄糖 5.0g | H29: 注射剂 | I29: 五层共挤输液用 袋 | J29: 1 | K29: 袋 | L29: 袋 | M29: 国药准字 H20051785 | N29: 辽宁海神联 盛制药有限 公司 | O29: 辽宁海神联盛 制药有限公司 | P29: 4.19 | Q29: 代表品
A30: XV02DXH042B 014010104152 | B30: 注射用环磷 腺苷葡胺 | C30: 环磷腺苷葡 胺注射剂 | D30: 4B | G30: 30mg | H30: 冻干粉针 | I30: 低硼硅玻璃管制 注射剂瓶/钠钙 玻璃模制注射剂 瓶 | J30: 1 | K30: 盒 | L30: 瓶 | M30: 国药准字 H20050188 | N30: 瑞阳制药股 份有限公司 | O30: 瑞阳制药股份 有限公司 | P30: 3 | Q30: 代表品
A31: XM09AXG112 B002010203665 | B31: 骨肽注射液 | C31: 骨肽注射剂 | D31: 37B | G31: 2ml:10mg | H31: 注射液 | I31: 低硼硅玻璃安瓿 | J31: 1 | K31: 支 | L31: 支 | M31: 国药准字 H20003668 | N31: 哈尔滨圣泰 生物制药有 限公司 | O31: 哈尔滨圣泰生 物制药有限公 司 | P31: 0.63 | Q31: 代表品
A32: XA05BAE087B 001010301066 | B32: 注射用二氯 醋酸二异丙 胺葡萄糖酸 钠 | C32: 复方二氯醋 酸二异丙胺 (二氯醋酸二 异丙胺葡萄 糖酸钠）注射 剂 | D32: 2B | E32: 每瓶含二氯 醋酸二异丙 胺 40mg 与 葡萄糖酸钠 38mg | F32: 注射剂 | G32: 每瓶含二氯 醋酸二异丙 胺 40mg 与 葡萄糖酸钠 38mg | H32: 冻干粉针剂 | I32: 低硼硅玻璃管制 注射剂瓶、注射 用无菌粉末用卤 化丁基橡胶塞 | J32: 1 | K32: 瓶 | L32: 瓶 | M32: 国药准字 H20052335 | N32: 重庆药友制 药有限责任 公司 | O32: 重庆药友制药 有限责任公司 | P32: 2.52 | Q32: 代表品
A33: XA05BAF258B 002030201157 | B33: 复方二氯醋 酸二异丙胺 注射液 | C33: 复方二氯醋 酸二异丙胺 (二氯醋酸二 异丙胺葡萄 糖酸钠）注射 剂 | D33: 2B | E33: 4ml(每支含 二氯醋酸二 异丙胺 80mg,葡萄 糖酸钠 76mg) | F33: 注射剂 | G33: 4ml:80mg | H33: 注射液 | I33: 安瓿 | J33: 1 | K33: 支 | L33: 支 | M33: 国药准字 H20058829 | N33: 丹东医创药 业有限责任 公司 | O33: 丹东医创药业 有限责任公司 | P33: 2.38 | Q33: 供应清单
A34: XB01AXA223B 002010201157 | B34: 奥扎格雷钠 注射液 | C34: 奥扎格雷注射剂 | D34: 5B | G34: 2ml:40mg | H34: 注射液 | I34: 安瓿 | J34: 1 | K34: 支 | L34: 支 | M34: 国药准字 H20093429 | N34: 丹东医创药 业有限责任 公司 | O34: 丹东医创药业 有限责任公司 | P34: 0.9 | Q34: 供应清单
A35: XB01AXA223B 002020201157 | B35: 奥扎格雷钠 注射液 | C35: 奥扎格雷注射剂 | D35: 5B | E35: 5ml:80mg | F35: 注射剂 | G35: 5ml:80mg( 以 C 13H 11N2N aO2 计) | H35: 注射液 | I35: 安瓿 | J35: 1 | K35: 支 | L35: 支 | M35: 国药准字 H20093428 | N35: 丹东医创药 业有限责任 公司 | O35: 丹东医创药业 有限责任公司 | P35: 1.53 | Q35: 供应清单
A36: XB01AXA223B 014040201157 | B36: 注射用奥扎 格雷钠 | C36: 奥扎格雷注射剂 | D36: 5B | E36: 80mg | F36: 注射剂(冻干) | G36: 80mg | H36: 注射剂 (冻干) | I36: 低硼硅玻璃管制 注射剂瓶 | J36: 1 | K36: 支 | L36: 支 | M36: 国药准字 H20043084 | N36: 丹东医创药 业有限责任 公司 | O36: 丹东医创药业 有限责任公司 | P36: 1.53 | Q36: 供应清单
A37: XV02DXH042B 001010204982 | B37: 注射用环磷 腺苷葡胺 | C37: 环磷腺苷葡 胺注射剂 | D37: 4B | E37: 30mg | F37: 注射剂 | G37: 30mg | H37: 注射剂 | I37: 低硼硅玻璃管制 注射剂瓶 | J37: 1 | K37: 瓶 | L37: 瓶 | M37: 国药准字 H20040625 | N37: 湖南五洲通 药业股份有 限公司 | O37: 湖南五洲通药 业股份有限公 司 | P37: 4.41 | Q37: 供应清单
A38: XV02DXH042B 002040104180 | B38: 环磷腺苷葡 胺注射液 | C38: 环磷腺苷葡 胺注射剂 | D38: 4B | E38: 5ml:90mg | F38: 注射剂 | G38: 5ml:90mg | H38: 注射剂 | I38: 安瓿包装 | J38: 1 | K38: 支 | L38: 支 | M38: 国药准字 H20053305 | N38: 中孚药业股 份有限公司 | O38: 中孚药业股份 有限公司 | P38: 9.04 | Q38: 供应清单
A39: XV02DXH042B 014020104152 | B39: 注射用环磷 腺苷葡胺 | C39: 环磷腺苷葡 胺注射剂 | D39: 4B | G39: 60mg | H39: 冻干粉针 | I39: 低硼硅玻璃管制 注射剂瓶/钠钙 玻璃模制注射剂 瓶 | J39: 1 | K39: 盒 | L39: 瓶 | M39: 国药准字 H20052316 | N39: 瑞阳制药股 份有限公司 | O39: 瑞阳制药股份 有限公司 | P39: 5.1 | Q39: 供应清单
A40: XC02CXY165B 002010205549 | B40: 银杏达莫注射液 | C40: 银杏达莫注射剂 | D40: 9B | E40: 10ml | F40: 注射剂 | G40: 10ml | H40: 注射液 | I40: 安瓿瓶 | J40: 1 | K40: 支 | L40: 支 | M40: 国药准字 H52020031 | N40: 贵州益佰制 药股份有限 公司 | O40: 贵州益佰制药 股份有限公司 | P40: 10.2 | Q40: 供应清单
A41: XC02CXY165B 002030102918 | B41: 银杏达莫注射液 | C41: 银杏达莫注射剂 | D41: 9B | E41: 5ml | F41: 注射剂 | G41: 5ml | H41: 注射液 | I41: 安瓿 | J41: 1 | K41: 支 | L41: 支 | M41: 国药准字 H 14023515 | N41: 山西普德药 业有限公司 | O41: 山西普德药业 有限公司 | P41: 7.69 | Q41: 供应清单
A42: XC05CAQ094B 002020104187 | B42: 曲克芦丁注射液 | C42: 曲克芦丁注射剂 | D42: 1B | G42: 2ml:60mg | H42: 注射液 | I42: 安瓿 | J42: 1 | K42: 支 | L42: 支 | M42: 国药准字 H37023212 | N42: 山东新华制 药股份有限 公司 | O42: 山东新华制药 股份有限公司 | P42: 0.41 | Q42: 供应清单

Sheet 四川联盟药品中选产品首年协议量明细
A1: 附件3-1
A2: 四川联盟环磷腺苷葡胺等化学药品带量联动采购我省参加品种中选产品首年协议量明细
A3: 医保编码 | B3: 通用名 | C3: 剂型 | D3: 规格 | E3: 包装材质 | F3: 申报企业名称 | G3: 批准文号 | H3: 品种序号 | I3: 品种名称 | J3: 医疗机构代码 | K3: 医疗机构名称 | L3: 预采购量（片/粒/袋/支） | M3: 约定采购比例 | N3: 首年协议采购量（片/粒/袋/支）
A4: XV02DXH042B 014020104152 | B4: 注射用环磷 腺苷葡胺 | C4: 冻干粉针 | D4: 60mg | E4: 低硼硅玻璃管制 注射剂瓶/钠钙 玻璃模制注射剂 瓶 | F4: 瑞阳制药股份 有限公司 | G4: 国药准字 H20052316 | H4: 4B | I4: 环磷腺苷葡 胺注射剂 | J4: H63010200039 | K4: 青海省藏医院 | L4: 2400 | M4: 80% | N4: =L4*M4 -> 1920
A5: XR06AXG080A 001010200568 | B5: 枸地氯雷他定片 | C5: 片剂 | D5: 8.8mg(按 C25H25ClN 2O7Na2 计) | E5: 铝塑包装 | F5: 扬子江药业集 团广州海瑞药 业有限公司 | G5: 国药准字 H20090138 | H5: 59B | I5: 枸地氯雷他 定口服常释 剂型 | J5: H63010200143 | K5: 青海省人民医院 | L5: 6000 | M5: 80% | N5: =L5*M5 -> 4800
A6: XR06AXG080E 001010310237 | B6: 枸地氯雷他 定胶囊 | C6: 硬胶囊 | D6: 8.8mg | E6: 铝塑 | F6: 合肥恩瑞特药 业有限公司 | G6: 国药准字 H20173031 | H6: 59B | I6: 枸地氯雷他 定口服常释 剂型 | J6: H63010200143 | K6: 青海省人民医院 | L6: 1440 | M6: 80% | N6: =L6*M6 -> 1152
A7: XV02DXH042B 014020104152 | B7: 注射用环磷 腺苷葡胺 | C7: 冻干粉针 | D7: 60mg | E7: 低硼硅玻璃管制 注射剂瓶/钠钙 玻璃模制注射剂 瓶 | F7: 瑞阳制药股份 有限公司 | G7: 国药准字 H20052316 | H7: 4B | I7: 环磷腺苷葡 胺注射剂 | J7: H63010300054 | K7: 青海省第四人民医院 | L7: 350 | M7: 80% | N7: =L7*M7 -> 280
A8: XR06AXG080A 001010200568 | B8: 枸地氯雷他定片 | C8: 片剂 | D8: 8.8mg(按 C25H25ClN 2O7Na2 计) | E8: 铝塑包装 | F8: 扬子江药业集 团广州海瑞药 业有限公司 | G8: 国药准字 H20090138 | H8: 59B | I8: 枸地氯雷他 定口服常释 剂型 | J8: H63010300156 | K8: 青海红十字医院 | L8: 2500 | M8: 80% | N8: =L8*M8 -> 2000
A9: XR06AXG080E 001010310237 | B9: 枸地氯雷他 定胶囊 | C9: 硬胶囊 | D9: 8.8mg | E9: 铝塑 | F9: 合肥恩瑞特药 业有限公司 | G9: 国药准字 H20173031 | H9: 59B | I9: 枸地氯雷他 定口服常释 剂型 | J9: H63010300156 | K9: 青海红十字医院 | L9: 2500 | M9: 80% | N9: =L9*M9 -> 2000
A10: XV02DXH042B 002020103358 | B10: 环磷腺苷葡 胺注射液 | C10: 注射液 | D10: 5ml:60mg | E10: 安瓿包装 | F10: 吉林敖东药业 集团延吉股份 有限公司 | G10: 国药准字 H20059648 | H10: 4B | I10: 环磷腺苷葡 胺注射剂 | J10: H63010400631 | K10: 青海省交通医院 | L10: 1840 | M10: 80% | N10: =L10*M10 -> 1472
A11: XV02DXH042B 014020104152 | B11: 注射用环磷 腺苷葡胺 | C11: 冻干粉针 | D11: 60mg | E11: 低硼硅玻璃管制 注射剂瓶/钠钙 玻璃模制注射剂 瓶 | F11: 瑞阳制药股份 有限公司 | G11: 国药准字 H20052316 | H11: 4B | I11: 环磷腺苷葡 胺注射剂 | J11: H63010500021 | K11: 西宁市第二人民医院 | L11: 10000 | M11: 80% | N11: =L11*M11 -> 8000
A12: XC02CXY165B 002040102918 | B12: 银杏达莫注射液 | C12: 注射液 | D12: 10ml | E12: 安瓿 | F12: 山西普德药业 有限公司 | G12: 国药准字 H 14023516 | H12: 9B | I12: 银杏达莫注射剂 | J12: H63010500170 | K12: 西宁市第三人民医院 | L12: 400 | M12: 80% | N12: =L12*M12 -> 320
A13: XR06AXG080A 001010200568 | B13: 枸地氯雷他定片 | C13: 片剂 | D13: 8.8mg(按 C25H25ClN 2O7Na2 计) | E13: 铝塑包装 | F13: 扬子江药业集 团广州海瑞药 业有限公司 | G13: 国药准字 H20090138 | H13: 59B | I13: 枸地氯雷他 定口服常释 剂型 | J13: H63010500170 | K13: 西宁市第三人民医院 | L13: 2880 | M13: 80% | N13: =L13*M13 -> 2304
A14: XV02DXH042B 014020104152 | B14: 注射用环磷 腺苷葡胺 | C14: 冻干粉针 | D14: 60mg | E14: 低硼硅玻璃管制 注射剂瓶/钠钙 玻璃模制注射剂 瓶 | F14: 瑞阳制药股份 有限公司 | G14: 国药准字 H20052316 | H14: 4B | I14: 环磷腺苷葡 胺注射剂 | J14: H63010600889 | K14: 西宁市湟中县中医院 | L14: 3200 | M14: 80% | N14: =L14*M14 -> 2560
A15: XM09AXG112 B002010203665 | B15: 骨肽注射液 | C15: 注射液 | D15: 2ml:10mg | E15: 低硼硅玻璃安瓿 | F15: 哈尔滨圣泰生 物制药有限公 司 | G15: 国药准字 H20003668 | H15: 37B | I15: 骨肽注射剂 | J15: H63012100662 | K15: 大通回族土族自治县人民医院 | L15: 120 | M15: 80% | N15: =L15*M15 -> 96
A16: XV02DXH042B 014020104152 | B16: 注射用环磷 腺苷葡胺 | C16: 冻干粉针 | D16: 60mg | E16: 低硼硅玻璃管制 注射剂瓶/钠钙 玻璃模制注射剂 瓶 | F16: 瑞阳制药股份 有限公司 | G16: 国药准字 H20052316 | H16: 4B | I16: 环磷腺苷葡 胺注射剂 | J16: H63012100662 | K16: 大通回族土族自治县人民医院 | L16: 20000 | M16: 80% | N16: =L16*M16 -> 16000
A17: XR06AXG080E 001010310237 | B17: 枸地氯雷他 定胶囊 | C17: 硬胶囊 | D17: 8.8mg | E17: 铝塑 | F17: 合肥恩瑞特药 业有限公司 | G17: 国药准字 H20173031 | H17: 59B | I17: 枸地氯雷他 定口服常释 剂型 | J17: H63012200552 | K17: 湟中区第二人民医院 | L17: 60 | M17: 80% | N17: =L17*M17 -> 48
A18: XN06BXJ001B 001010203662 | B18: 注射用肌氨肽苷 | C18: 注射剂 | D18: 8.75mg 多 肽与 1.25mg 次 黄嘌呤 | E18: 低硼硅玻璃管制 注射剂瓶 | F18: 哈尔滨三联药 业股份有限公 司 | G18: 国药准字 H20051053 | H18: 8B | I18: 肌氨肽苷注射剂 | J18: H63012300646 | K18: 湟源县人民医院 | L18: 3000 | M18: 80% | N18: =L18*M18 -> 2400
A19: XV02DXH042B 014020104152 | B19: 注射用环磷 腺苷葡胺 | C19: 冻干粉针 | D19: 60mg | E19: 低硼硅玻璃管制 注射剂瓶/钠钙 玻璃模制注射剂 瓶 | F19: 瑞阳制药股份 有限公司 | G19: 国药准字 H20052316 | H19: 4B | I19: 环磷腺苷葡 胺注射剂 | J19: H63012300749 | K19: 湟源县中医院 | L19: 1000 | M19: 80% | N19: =L19*M19 -> 800
A20: XC02CXY165B 002010205549 | B20: 银杏达莫注射液 | C20: 注射液 | D20: 10ml | E20: 安瓿瓶 | F20: 贵州益佰制药 股份有限公司 | G20: 国药准字 H52020031 | H20: 9B | I20: 银杏达莫注射剂 | J20: H63020200926 | K20: 海东市乐都区中医院 | L20: 100 | M20: 80% | N20: 80
A21: XC05CAQ094B 002020103205 | B21: 曲克芦丁注射液 | C21: 注射剂 | D21: 2ml:100mg | E21: 低硼硅玻璃安瓿 | F21: 国药集团容生 制药有限公司 | G21: 国药准字 H20046211 | H21: 1B | I21: 曲克芦丁注射剂 | J21: H63020200926 | K21: 海东市乐都区中医院 | L21: 100 | M21: 80% | N21: 80
A22: XR06AXG080E 001010310237 | B22: 枸地氯雷他 定胶囊 | C22: 硬胶囊 | D22: 8.8mg | E22: 铝塑 | F22: 合肥恩瑞特药 业有限公司 | G22: 国药准字 H20173031 | H22: 59B | I22: 枸地氯雷他 定口服常释 剂型 | J22: H63020200948 | K22: 海东市第二人民医院 | L22: 200 | M22: 80% | N22: 160
A23: XC02CXY165B 002040102918 | B23: 银杏达莫注射液 | C23: 注射液 | D23: 10ml | E23: 安瓿 | F23: 山西普德药业 有限公司 | G23: 国药准字 H 14023516 | H23: 9B | I23: 银杏达莫注射剂 | J23: H63020300290 | K23: 海东市平安区中医医院 | L23: 240 | M23: 80% | N23: 192
A24: XC02CXY165B 002040102918 | B24: 银杏达莫注射液 | C24: 注射液 | D24: 10ml | E24: 安瓿 | F24: 山西普德药业 有限公司 | G24: 国药准字 H 14023516 | H24: 9B | I24: 银杏达莫注射剂 | J24: H63020300752 | K24: 海东市第一人民医院 | L24: 200 | M24: 80% | N24: 160
A25: XB01AXA235B 002010201207 | B25: 奥扎格雷钠 葡萄糖注射 液 | C25: 注射剂 | D25: 100ml:奥扎 格雷钠 80mg 与葡 萄糖 5.0g | E25: 五层共挤输液用 袋 | F25: 辽宁海神联盛 制药有限公司 | G25: 国药准字 H20051785 | H25: 5B | I25: 奥扎格雷注射剂 | J25: H63022201113 | K25: 民和回族土族自治县中医院 | L25: 50 | M25: 80% | N25: =L25*M25 -> 40
A26: XN06BXJ001B 001010203662 | B26: 注射用肌氨肽苷 | C26: 注射剂 | D26: 8.75mg 多 肽与 1.25mg 次 黄嘌呤 | E26: 低硼硅玻璃管制 注射剂瓶 | F26: 哈尔滨三联药 业股份有限公 司 | G26: 国药准字 H20051053 | H26: 8B | I26: 肌氨肽苷注射剂 | J26: H63022201113 | K26: 民和回族土族自治县中医院 | L26: 50 | M26: 80% | N26: =L26*M26 -> 40
A27: XV02DXH042B 014020104152 | B27: 注射用环磷 腺苷葡胺 | C27: 冻干粉针 | D27: 60mg | E27: 低硼硅玻璃管制 注射剂瓶/钠钙 玻璃模制注射剂 瓶 | F27: 瑞阳制药股份 有限公司 | G27: 国药准字 H20052316 | H27: 4B | I27: 环磷腺苷葡 胺注射剂 | J27: H63022201113 | K27: 民和回族土族自治县中医院 | L27: 50 | M27: 80% | N27: =L27*M27 -> 40
A28: XV02DXH042B 014020104152 | B28: 注射用环磷 腺苷葡胺 | C28: 冻干粉针 | D28: 60mg | E28: 低硼硅玻璃管制 注射剂瓶/钠钙 玻璃模制注射剂 瓶 | F28: 瑞阳制药股份 有限公司 | G28: 国药准字 H20052316 | H28: 4B | I28: 环磷腺苷葡 胺注射剂 | J28: H63222300019 | K28: 海北藏族自治州第一人民医院 | L28: 160 | M28: 80% | N28: =L28*M28 -> 128
A29: XR06AXG080E 001010310237 | B29: 枸地氯雷他 定胶囊 | C29: 硬胶囊 | D29: 8.8mg | E29: 铝塑 | F29: 合肥恩瑞特药 业有限公司 | G29: 国药准字 H20173031 | H29: 59B | I29: 枸地氯雷他 定口服常释 剂型 | J29: H63232100405 | K29: 同仁市中医院 | L29: 10 | M29: 80% | N29: =L29*M29 -> 8
A30: XC02CXY165B 002030102918 | B30: 银杏达莫注射液 | C30: 注射液 | D30: 5ml | E30: 安瓿 | F30: 山西普德药业 有限公司 | G30: 国药准字 H 14023515 | H30: 9B | I30: 银杏达莫注射剂 | J30: H63232200007 | K30: 尖扎县人民医院 | L30: 200 | M30: 80% | N30: =L30*M30 -> 160
A31: XR06AXG080A 001010200568 | B31: 枸地氯雷他定片 | C31: 片剂 | D31: 8.8mg(按 C25H25ClN 2O7Na2 计) | E31: 铝塑包装 | F31: 扬子江药业集 团广州海瑞药 业有限公司 | G31: 国药准字 H20090138 | H31: 59B | I31: 枸地氯雷他 定口服常释 剂型 | J31: H63232400083 | K31: 河南蒙古族自治县人民医院 | L31: 180 | M31: 80% | N31: =L31*M31 -> 144
A32: XM09AXG112 B002010203665 | B32: 骨肽注射液 | C32: 注射液 | D32: 2ml:10mg | E32: 低硼硅玻璃安瓿 | F32: 哈尔滨圣泰生 物制药有限公 司 | G32: 国药准字 H20003668 | H32: 37B | I32: 骨肽注射剂 | J32: H63252100162 | K32: 青海省海南藏族自治州人民医院 | L32: 50 | M32: 80% | N32: =L32*M32 -> 40
A33: XR06AXG080E 001010310237 | B33: 枸地氯雷他 定胶囊 | C33: 硬胶囊 | D33: 8.8mg | E33: 铝塑 | F33: 合肥恩瑞特药 业有限公司 | G33: 国药准字 H20173031 | H33: 59B | I33: 枸地氯雷他 定口服常释 剂型 | J33: H63262600072 | K33: 青海省玛多县人民医院 | L33: 120 | M33: 80% | N33: =L33*M33 -> 96
A34: XV02DXH042B 014020104152 | B34: 注射用环磷 腺苷葡胺 | C34: 冻干粉针 | D34: 60mg | E34: 低硼硅玻璃管制 注射剂瓶/钠钙 玻璃模制注射剂 瓶 | F34: 瑞阳制药股份 有限公司 | G34: 国药准字 H20052316 | H34: 4B | I34: 环磷腺苷葡 胺注射剂 | J34: H63270100018 | K34: 玉树藏族自治州人民医院 | L34: 300 | M34: 80% | N34: =L34*M34 -> 240
A35: XM09AXG112 B002010203665 | B35: 骨肽注射液 | C35: 注射液 | D35: 2ml:10mg | E35: 低硼硅玻璃安瓿 | F35: 哈尔滨圣泰生 物制药有限公 司 | G35: 国药准字 H20003668 | H35: 37B | I35: 骨肽注射剂 | J35: H63280100146 | K35: 格尔木市人民医院 | L35: 600 | M35: 80% | N35: =L35*M35 -> 480
A36: XR06AXG080E 001010310237 | B36: 枸地氯雷他 定胶囊 | C36: 硬胶囊 | D36: 8.8mg | E36: 铝塑 | F36: 合肥恩瑞特药 业有限公司 | G36: 国药准字 H20173031 | H36: 59B | I36: 枸地氯雷他 定口服常释 剂型 | J36: H63280100146 | K36: 格尔木市人民医院 | L36: 3600 | M36: 80% | N36: =L36*M36 -> 2880
A37: XR06AXG080E 001010310237 | B37: 枸地氯雷他 定胶囊 | C37: 硬胶囊 | D37: 8.8mg | E37: 铝塑 | F37: 合肥恩瑞特药 业有限公司 | G37: 国药准字 H20173031 | H37: 59B | I37: 枸地氯雷他 定口服常释 剂型 | J37: H63280100208 | K37: 青海油田医院 | L37: 1200 | M37: 80% | N37: =L37*M37 -> 960
